bitfinex/quotes_ETHUSD_20220202
["timestamp","ask_amount","ask_price","bid_price","bid_amount"]
[1643796905578,2.00906357,2767.7,2767.1,0.3]
[1643796905778,2.18966357,2767.7,2766.8,1.4806]
[1643796905977,0.9034963,2767.5,2766.8,0.4806]
[1643796906177,0.9034963,2767.5,2766.8,1.1806]
[1643796906482,0.9034963,2767.5,2766.8,0.1806]
[1643796906483,0.39994,2767.2,2766.8,0.1806]
[1643796906877,1.8070538,2767.1,2766.8,0.1806]
[1643796907279,3.67684546,2767.1,2766.8,0.1806]
[1643796907483,1.8070538,2767.1,2766.8,0.1806]
[1643796907685,3.6760297,2767.1,2766.8,0.1806]
[1643796907883,4.5177538,2767.1,2766.8,0.1806]
[1643796908082,8.18709376,2767.1,2766.8,0.1806]
[1643796908282,4.5178548,2767.1,2766.8,0.1806]
[1643796908725,6.39852171,2767.1,2766.8,0.1806]
[1643796909131,7.30220171,2767.1,2766.8,0.1806]
[1643796909327,7.30220171,2767.1,2767.0,1.18576012]
[1643796909524,6.39852171,2767.1,2767.0,1.18576012]
[1643796909824,6.38543044,2767.1,2767.0,1.18576012]
[1643796910025,4.5178548,2767.1,2767.0,1.18576012]
[1643796910226,6.37196767,2767.1,2767.0,1.18576012]
[1643796910426,4.5178548,2767.1,2767.0,1.18576012]
[1643796910626,3.6143248,2767.1,2767.0,1.18576012]
[1643796910928,1.8070538,2767.1,2767.0,1.18576012]
[1643796911329,1.08356907,2767.2,2767.0,1.18576012]
[1643796911330,0.39994,2767.2,2767.0,1.18576012]
[1643796911526,1.58715477,2767.4,2767.0,1.48576012]
[1643796911738,0.86422907,2767.5,2767.0,1.48576012]
[1643796911926,0.01,2767.7,2767.0,1.48576012]
[1643796911927,1.53042398,2767.4,2767.0,1.48576012]
[1643796912126,1.53042398,2767.3,2767.0,1.48576012]
[1643796912374,0.68362907,2767.6,2767.0,1.48576012]
[1643796912375,1.53042398,2767.2,2767.0,1.48576012]
[1643796912578,0.1906,2767.7,2767.1,0.72319101]
[1643796912579,1.06439447,2767.7,2767.1,0.72319101]
[1643796912783,1.53035693,2767.6,2767.1,2.66091537]
[1643796912980,1.53035693,2767.6,2767.2,2.08719837]
[1643796913284,1.53035693,2767.6,2767.2,2.29044609]
[1643796913481,1.53035693,2767.6,2767.1,0.90379101]
[1643796913680,1.53035693,2767.6,2767.2,0.3]
[1643796913879,1.53035693,2767.6,2767.1,0.90379101]
[1643796914286,1.53035693,2767.6,2767.1,1.80705101]
[1643796914681,1.53035693,2767.6,2767.4,1.18576012]
[1643796914880,1.53035693,2767.6,2767.4,1.48576012]
[1643796915084,1.52035693,2767.6,2767.4,1.48576012]
[1643796915282,0.01,2767.7,2767.4,4.19516012]
[1643796915482,0.1806,2768.4,2767.5,2.48978295]
[1643796915685,0.1806,2768.4,2767.5,0.5201056]
[1643796915880,0.1806,2768.4,2767.7,0.86577099]
[1643796916122,2.68362907,2768.5,2767.5,0.1806]
[1643796916123,3.11099744,2768.5,2767.5,0.1806]
[1643796916428,3.79462651,2768.5,2767.5,0.1806]
[1643796916829,0.68362907,2768.4,2767.5,0.1806]
[1643796917024,0.33348092,2768.1,2767.5,1.0942722]
[1643796917729,0.33348092,2768.1,2767.6,0.90309]
[1643796918130,0.1806,2768.5,2767.6,1.20309]
[1643796918530,0.1806,2768.5,2767.6,1.2231609]
[1643796918832,0.86422907,2768.5,2767.6,2.10624]
[1643796919029,0.1806,2768.5,2767.6,2.10624]
[1643796919229,0.37772423,2768.3,2767.6,2.10624]
[1643796919437,0.37772423,2768.3,2767.6,0.3]
[1643796919632,0.37772423,2768.3,2767.5,1.3942722]
[1643796919879,0.37772423,2768.3,2767.9,0.59288006]
[1643796920079,0.55832423,2768.3,2767.5,1.3942722]
[1643796920279,0.37772423,2768.3,2767.5,1.3942722]
[1643796921181,0.37772423,2768.3,2767.5,2.2975022]
[1643796921782,0.37772423,2768.3,2767.5,1.38383]
[1643796921993,0.35876483,2767.8,2767.5,0.4806]
[1643796922181,1.87228464,2767.7,2767.5,0.4806]
[1643796922382,0.35876483,2767.8,2767.5,0.1806]
[1643796923185,0.89795451,2767.6,2767.5,0.1806]
[1643796923384,1.86513899,2767.7,2767.5,0.1806]
[1643796924234,1.26223333,2767.8,2767.5,0.1806]
[1643796924539,0.38171406,2767.2,2767.0,0.1806]
[1643796925131,0.9034685,2767.8,2767.0,0.1806]
[1643796926232,0.41720593,2767.3,2767.0,0.1806]
[1643796927693,2.97650751,2767.7,2767.0,0.1806]
[1643796927885,2.79590751,2767.7,2766.9,0.4806]
[1643796928083,2.79590751,2767.7,2766.9,0.1806]
[1643796928484,0.1806,2767.8,2766.9,1.08399]
[1643796928688,0.33839782,2767.6,2766.9,2.00676003]
[1643796928884,0.33839782,2767.6,2766.9,1.98738]
[1643796929486,0.33839782,2767.6,2766.9,2.00530585]
[1643796929687,0.33839782,2767.6,2766.9,2.30530585]
[1643796929892,0.33839782,2767.6,2766.9,2.28738]
[1643796931335,0.33839782,2767.6,2767.0,0.90337]
[1643796931837,0.33839782,2767.6,2767.1,1.20336]
[1643796932035,3.92495479,2768.4,2767.1,1.20336]
[1643796932036,0.1806,2767.9,2767.1,1.20336]
[1643796932235,0.1806,2767.9,2767.1,1.22279099]
[1643796932449,0.1806,2767.9,2767.3,1.80651]
[1643796932642,1.2381,2768.2,2767.4,0.823]
[1643796932643,0.1806,2768.2,2767.4,0.823]
[1643796932842,0.1806,2768.4,2767.9,0.86497033]
[1643796933041,0.33022802,2768.4,2767.9,0.86497033]
[1643796933243,0.33022802,2768.4,2767.9,1.16497033]
[1643796935081,1.53007392,2768.3,2767.9,1.16497033]
[1643796936277,1.53007392,2768.3,2767.9,0.3]
[1643796936478,1.53007392,2768.3,2767.7,1.20322]
[1643796937690,1.53007392,2768.3,2767.8,0.81322843]
[1643796938633,1.53007392,2768.3,2767.7,0.90322]
[1643796938831,1.53007392,2768.3,2767.7,1.20322]
[1643796939432,1.53007392,2768.3,2767.6,0.3]
[1643796939633,1.53007392,2768.2,2767.6,0.3]
[1643796941036,0.34952112,2767.9,2767.6,0.3]
[1643796941238,1.53007392,2767.8,2767.5,1.80633]
[1643796941437,1.53007392,2767.8,2767.6,0.3]
[1643796941638,1.53007392,2767.8,2767.6,0.62173141]
[1643796942238,1.53007392,2767.8,2767.6,0.32173141]
[1643796943782,1.83007392,2767.8,2767.6,0.32173141]
[1643796943981,1.53007392,2767.7,2767.6,0.32173141]
[1643796944785,1.53007392,2767.8,2767.6,0.32173141]
[1643796944986,1.53007392,2767.7,2767.6,0.32173141]
[1643796945182,0.64952112,2767.9,2767.6,0.32173141]
[1643796945183,1.53007392,2767.8,2767.6,0.32173141]
[1643796945387,1.53007392,2767.7,2767.6,0.32173141]
[1643796945783,1.53007392,2767.8,2767.6,0.32173141]
[1643796945984,1.53007392,2767.7,2767.6,0.32173141]
[1643796946236,1.53007392,2767.8,2767.6,0.32173141]
[1643796950589,1.53007392,2767.8,2767.3,0.1806]
[1643796950783,1.53007392,2767.8,2767.3,0.02252447]
[1643796950982,1.53007392,2767.8,2767.3,0.34416396]
[1643796951283,0.42943489,2767.4,2767.3,0.32163949]
[1643796952487,0.85887978,2767.7,2767.3,2.32163949]
[1643796952696,0.1806,2768.1,2767.6,0.01234299]
[1643796952990,1.52994875,2768.0,2767.6,0.01234299]
[1643796953195,0.90306,2768.2,2767.6,0.01234299]
[1643796953393,1.52993653,2768.1,2767.6,0.01234299]
[1643796953633,0.38547192,2768.0,2767.6,0.91538299]
[1643796953836,0.38547192,2768.0,2767.6,0.32161323]
[1643796954036,1.52995378,2767.9,2767.6,0.32161323]
[1643796954242,1.52995378,2767.9,2767.6,0.50221323]
[1643796955240,3.60363125,2767.9,2767.6,0.32161323]
[1643796955435,1.52995378,2767.8,2767.6,0.32161323]
[1643796959991,0.1806,2767.7,2767.6,0.32161323]
[1643796960191,1.71055378,2767.7,2767.6,0.32161323]
[1643796960998,2.71055378,2767.7,2767.6,0.32161323]
[1643796961430,0.90362,2767.6,2766.6,0.325136]
[1643796961630,2.39686878,2767.5,2766.6,0.53671848]
[1643796961835,0.76219363,2766.9,2766.6,0.53671848]
[1643796962031,1.84887521,2766.8,2766.6,0.53671848]
[1643796962230,0.31892143,2766.8,2766.6,0.53671848]
[1643796962833,0.1807,2767.2,2766.6,0.53671848]
[1643796963034,1.53049802,2767.1,2766.6,0.53671848]
[1643796963233,0.1807,2767.4,2766.6,0.53671848]
[1643796963234,1.53049802,2767.0,2766.6,0.53671848]
[1643796963435,1.53049802,2766.9,2766.6,0.53671848]
[1643796963837,0.90364,2766.9,2766.6,0.35611848]
[1643796964037,1.53049802,2766.8,2766.6,0.35611848]
[1643796964237,1.53049802,2766.8,2766.6,0.144536]
[1643796965284,1.53049802,2766.8,2766.3,2.96834145]
[1643796965486,0.41047578,2766.7,2766.3,0.90357]
[1643796965682,0.90364,2766.9,2766.3,0.90357]
[1643796965883,0.90359,2766.7,2766.3,0.90357]
[1643796968385,0.90359,2766.7,2766.4,1.8819393]
[1643796968639,0.1807,2767.2,2766.7,0.90339]
[1643796968840,1.80938682,2767.8,2766.8,2.30120741]
[1643796968841,0.1807,2767.7,2766.8,2.30120741]
[1643796969034,1.53035986,2767.6,2766.9,0.1806]
[1643796969433,1.53035986,2767.7,2767.0,0.7059361]
[1643796969636,0.34401274,2767.6,2767.1,1.87366678]
[1643796969834,1.53035986,2767.5,2767.2,0.90328]
[1643796971736,1.53035986,2767.5,2767.2,1.20328]
[1643796971936,1.53035986,2767.5,2767.2,2.1065328]
[1643796972140,0.90326,2767.9,2767.4,0.18034]
[1643796972390,0.1806,2768.0,2767.6,0.37319525]
[1643796972391,1.53014068,2767.8,2767.6,0.37319525]
[1643796972594,0.866915,2768.6,2767.7,2.31189851]
[1643796972800,1.53005951,2768.5,2767.7,3.49223851]
[1643796973093,0.1806,2768.4,2767.7,2.49223851]
[1643796973294,1.53005951,2768.3,2768.0,0.903]
[1643796974694,1.48005951,2768.3,2768.0,0.903]
[1643796975097,1.48005951,2768.3,2767.9,1.80599]
[1643796975697,1.32845958,2768.3,2767.9,1.80599]
[1643796975897,0.33268902,2768.4,2767.9,1.80599]
[1643796979536,0.33268902,2768.4,2767.7,3.91107253]
[1643796979988,0.90309,2768.3,2767.7,3.19381743]
[1643796980392,0.4421687,2767.9,2767.7,0.36094]
[1643796980588,0.4421687,2767.9,2767.7,0.18034]
[1643796981090,0.4421687,2767.9,2767.5,1.98676]
[1643796981697,0.4421687,2767.9,2767.5,0.1806]
[1643796982091,0.75733525,2767.6,2767.5,0.1806]
[1643796982291,0.34079561,2767.4,2767.1,1.98714]
[1643796982693,0.90333,2767.7,2767.1,1.98714]
[1643796983940,0.40853944,2767.3,2767.1,1.80654]
[1643796984448,0.40853944,2767.3,2767.1,0.1806]
[1643796984640,0.40853944,2767.3,2766.9,1.98726]
[1643796984942,0.40853944,2767.3,2766.8,0.1806]
[1643796985140,0.40853944,2767.3,2766.7,0.1806]
[1643796985540,1.31201944,2767.3,2766.7,0.1806]
[1643796985841,0.3,2767.4,2766.7,0.1806]
[1643796987141,0.90345,2767.3,2766.8,0.90343]
[1643796987594,0.3,2767.4,2767.0,0.71216887]
[1643796987996,0.3,2767.4,2767.1,1.89119074]
[1643796988795,0.3,2767.4,2766.9,2.32936002]
[1643796988996,0.3,2767.4,2766.9,2.32962002]
[1643796989196,0.3,2767.4,2766.9,1.98722]
[1643796989397,0.3,2767.4,2766.9,1.98026364]
[1643796989606,0.3,2767.4,2767.1,0.9033]
[1643796989799,0.3,2767.4,2767.1,1.72925744]
[1643796990796,0.3,2767.4,2767.1,2.02925744]
[1643796992038,0.3,2767.4,2767.1,3.83576834]
[1643796992243,0.90325,2767.7,2767.1,3.83576834]
[1643796992643,0.90325,2767.7,2767.2,1.90565317]
[1643796992842,0.90325,2767.7,2767.2,3.71209317]
[1643796993043,0.90584232,2768.0,2767.2,4.61529317]
[1643796993044,1.80905232,2768.0,2767.2,4.61529317]
[1643796993243,1.80905232,2768.0,2767.4,0.90322]
[1643796993442,0.31780169,2767.8,2767.4,2.76922819]
[1643796993644,0.31780169,2767.8,2767.4,0.90322]
[1643796994043,0.31780169,2767.8,2767.2,2.70964]
[1643796994246,1.22112169,2767.8,2767.2,1.80644]
[1643796995685,1.53033296,2767.7,2767.2,1.80644]
[1643796996087,1.53033296,2767.7,2767.0,0.1806]
[1643796996285,2.43369296,2767.7,2767.1,0.90334]
[1643796996484,1.53033296,2767.6,2767.1,0.90334]
[1643796998295,1.53033296,2767.6,2767.1,1.80663]
[1643796998736,1.53033296,2767.6,2767.2,1.8861864]
[1643796998936,1.53033296,2767.6,2767.2,3.6926364]
[1643796999137,0.1806,2767.9,2767.2,3.6926364]
[1643796999337,1.53024269,2767.8,2767.2,3.6926364]
[1643796999938,0.32956666,2767.7,2767.2,4.5958864]
[1643797000145,0.32956666,2767.7,2767.3,0.9032]
[1643797000146,1.53024269,2767.6,2767.3,0.9032]
[1643797002386,1.53024269,2767.5,2767.3,0.9032]
[1643797002585,1.08384,2767.9,2767.3,0.9032]
[1643797002791,1.53030545,2767.8,2767.3,0.9032]
[1643797004287,2.43358545,2767.8,2767.3,0.9032]
[1643797004485,1.53030545,2767.7,2767.3,0.9032]
[1643797004885,1.83030545,2767.7,2767.3,0.9032]
[1643797005087,1.53030545,2767.6,2767.2,3.6129476]
[1643797006535,1.53030545,2767.6,2767.0,0.1806]
[1643797006735,1.53030545,2767.6,2766.9,0.144516]
[1643797006736,1.71090545,2767.6,2766.9,0.144516]
[1643797006933,1.53030545,2767.5,2766.9,0.144516]
[1643797007134,0.1806,2767.4,2766.9,0.144516]
[1643797007435,1.53030545,2767.3,2766.9,0.144516]
[1643797007637,2.43384545,2767.3,2766.9,0.144516]
[1643797007837,1.53030545,2767.2,2766.9,0.144516]
[1643797008044,1.53030545,2767.2,2766.5,3.22701]
[1643797008235,0.4806,2767.4,2766.5,1.98751]
[1643797008236,0.39134969,2766.7,2766.5,1.98751]
[1643797008437,2.29136843,2767.1,2766.5,1.98751]
[1643797008438,0.76106298,2767.1,2766.5,1.98751]
[1643797008639,1.53060921,2767.0,2766.5,1.98751]
[1643797009443,1.53060921,2767.0,2766.5,0.1806]
[1643797009444,0.90356,2766.9,2766.5,0.1806]
[1643797009641,1.83060921,2766.8,2766.5,0.1806]
[1643797009894,1.53060921,2766.7,2766.5,0.1806]
[1643797010295,1.53060921,2766.7,2766.0,0.1807]
[1643797010501,1.31955103,2766.4,2766.0,0.1807]
[1643797010701,0.90371,2766.4,2766.0,0.1807]
[1643797011296,0.90371,2766.4,2766.0,1.98787]
[1643797011495,1.08426,2766.9,2766.1,2.0]
[1643797011496,0.90365,2766.7,2766.1,2.0]
[1643797011696,1.1349,2767.0,2766.2,0.1807]
[1643797011697,1.3156,2767.0,2766.2,0.1807]
[1643797011897,0.1807,2767.0,2766.2,0.1807]
[1643797012098,2.71101,2767.3,2766.3,1.08384]
[1643797012099,0.1807,2767.2,2766.3,1.08384]
[1643797012297,1.53057454,2767.1,2766.4,4.06245849]
[1643797012498,1.53057454,2767.1,2766.4,3.76245849]
[1643797012899,0.44715813,2766.9,2766.4,3.76245849]
[1643797013304,0.44715813,2766.9,2766.6,0.90345]
[1643797014242,1.53065133,2766.8,2766.4,1.80689]
[1643797014638,0.91423944,2767.1,2766.4,2.58043979]
[1643797014841,1.53069915,2767.0,2766.4,2.58043979]
[1643797015040,1.52939793,2767.0,2766.6,0.90347]
[1643797015640,1.52939793,2767.0,2766.7,1.93821076]
[1643797015849,1.1645,2767.3,2766.9,0.72579202]
[1643797016042,0.90344,2767.3,2766.9,0.72579202]
[1643797016241,0.90344,2767.3,2767.0,0.90337]
[1643797016442,0.1806,2767.5,2767.0,0.90337]
[1643797017043,0.51434658,2767.5,2767.0,0.90337]
[1643797017692,0.1806,2767.5,2767.0,2.82330153]
[1643797017888,0.1806,2767.7,2767.0,2.82330153]
[1643797018495,0.1806,2767.7,2767.1,0.18034]
[1643797018689,1.2394,2767.8,2767.3,0.90321]
[1643797018888,0.52312221,2767.9,2767.3,0.90321]
[1643797018889,1.42638221,2767.9,2767.3,0.90321]
[1643797020089,1.08386,2767.9,2767.3,2.77322828]
[1643797020293,0.90326,2767.9,2767.3,2.77322828]
[1643797020589,3.678175,2768.2,2767.3,2.77322828]
[1643797020590,1.08382,2768.1,2767.3,2.77322828]
[1643797021007,0.42718173,2768.0,2767.2,1.80642]
[1643797021264,0.42718173,2768.0,2766.9,0.1806]
[1643797021265,0.686315,2767.7,2766.9,0.1806]
[1643797021456,0.1806,2767.6,2766.8,2.0]
[1643797021760,1.80693,2767.8,2766.8,0.18034]
[1643797021761,2.45587163,2767.8,2766.8,0.18034]
[1643797021957,1.1854,2768.2,2767.0,0.01232024]
[1643797021958,0.1806,2767.9,2767.0,0.01232024]
[1643797022155,1.1854,2768.2,2767.8,0.72900799]
[1643797022156,0.1806,2768.1,2767.8,0.72900799]
[1643797022760,0.62021836,2768.3,2767.8,0.72900799]
[1643797023358,0.62021836,2768.3,2767.7,0.90313]
[1643797023359,1.30572499,2768.3,2767.7,0.90313]
[1643797023566,1.12512499,2768.3,2767.7,0.90313]
[1643797023759,1.42512499,2768.3,2767.7,0.90313]
[1643797024892,2.32828499,2768.3,2767.7,0.90313]
[1643797025695,2.32828499,2768.3,2767.8,0.92789563]
[1643797026894,2.02828499,2768.3,2767.7,0.90313]
[1643797027294,2.02828499,2768.3,2767.5,0.1806]
[1643797027699,0.68550663,2768.2,2767.5,0.1806]
[1643797028100,0.90326,2768.1,2767.5,0.1806]
[1643797028499,0.73718985,2768.0,2767.5,0.1806]
[1643797028745,0.90326,2768.1,2767.5,0.1806]
[1643797029138,0.68550663,2768.2,2767.5,0.17930009]
[1643797029739,1.42854558,2768.2,2767.5,0.17930009]
[1643797030345,0.90322,2768.1,2767.4,1.98686]
[1643797031362,0.68550663,2767.9,2767.4,0.1806]
[1643797031549,1.50322,2768.1,2767.0,0.32511]
[1643797031550,0.37568025,2767.2,2767.0,0.32511]
[1643797031751,0.68550663,2767.7,2767.0,0.14451]
[1643797032802,0.90346,2767.4,2767.0,0.14451]
[1643797033699,0.33548484,2767.2,2767.0,0.14451]
[1643797034699,1.2035,2767.3,2767.0,0.14451]
[1643797034902,0.3,2767.3,2767.0,0.14451]
[1643797035100,1.53048416,2767.2,2767.0,0.14451]
[1643797035500,1.53048416,2767.1,2766.8,0.1806]
[1643797035699,1.08402,2767.6,2766.8,0.1806]
[1643797035700,1.53048416,2767.0,2766.8,0.1806]
[1643797035902,0.35953526,2767.1,2766.8,0.1806]
[1643797036138,0.35953526,2767.1,2766.7,1.80678]
[1643797036139,1.53043261,2767.0,2766.7,1.80678]
[1643797036339,1.53043261,2767.0,2766.7,2.62067584]
[1643797038044,0.90347,2767.3,2766.7,0.81389584]
[1643797038245,1.53045408,2767.2,2766.6,0.1807]
[1643797038647,2.73398408,2767.2,2766.6,0.1807]
[1643797038845,2.73398408,2767.2,2766.4,0.1807]
[1643797038846,1.53045408,2767.1,2766.4,0.1807]
[1643797039152,1.71115408,2767.1,2766.3,4.9837]
[1643797039346,1.53045408,2767.0,2766.4,0.87989255]
[1643797039547,1.83045408,2767.0,2766.4,0.87989255]
[1643797039747,1.87903226,2766.9,2766.4,0.87989255]
[1643797039984,1.53045408,2766.8,2766.4,0.87989255]
[1643797041586,0.12010745,2766.4,2766.3,0.69853286]
[1643797046741,0.12010745,2766.4,2766.3,3.34853286]
[1643797047148,0.12010745,2766.4,2766.3,0.69853286]
[1643797047386,0.12010745,2766.4,2766.2,0.90365]
[1643797047592,0.12010745,2766.4,2766.1,7.47]
[1643797048492,0.12010745,2766.4,2766.2,1.14912073]
[1643797048891,1.02381745,2766.4,2766.2,1.14912073]
[1643797049295,1.02381745,2766.4,2766.2,2.05276073]
[1643797050793,1.02381745,2766.4,2766.2,0.90364]
[1643797050999,1.02381745,2766.4,2766.1,7.47]
[1643797051000,2.0,2766.3,2766.1,7.47]
[1643797051255,2.0,2766.3,2765.5,3.47694]
[1643797051256,2.43470554,2766.2,2765.7,0.1807]
[1643797051445,2.43470554,2766.2,2765.5,0.36104]
[1643797051446,0.90389,2766.2,2765.5,0.36104]
[1643797052050,0.90389,2766.2,2765.9,0.35493679]
[1643797052252,0.90389,2766.2,2766.1,0.95284218]
[1643797053055,1.02376745,2766.4,2766.1,0.95284218]
[1643797053263,0.12010745,2766.4,2766.1,0.95284218]
[1643797054455,0.12010745,2766.4,2766.1,1.85635218]
[1643797054654,0.12010745,2766.4,2766.2,1.80703]
[1643797056893,0.12010745,2766.4,2766.2,1.98773]
[1643797057897,0.12010745,2766.4,2766.3,5.83034]
[1643797058743,0.12010745,2766.4,2766.3,0.18034]
[1643797059541,0.12010745,2766.4,2766.3,3.33034]
[1643797060946,0.12010745,2766.4,2766.3,0.18034]
[1643797061148,0.12010745,2766.4,2766.3,1.18034]
[1643797062395,0.12010745,2766.4,2766.3,0.18034]
[1643797063095,0.11921414,2766.4,2766.3,4.03034]
[1643797063297,0.11921414,2766.4,2766.3,1.18034]
[1643797063500,0.11921414,2766.4,2766.2,1.80703]
[1643797064297,1.02288414,2766.4,2766.1,1.85646218]
[1643797064498,1.02288414,2766.4,2766.1,0.95284218]
[1643797066847,1.02288414,2766.4,2766.1,1.85651218]
[1643797067843,1.02288414,2766.4,2766.1,0.95284218]
[1643797074235,1.02288414,2766.4,2766.1,1.85649218]
[1643797074440,0.11921414,2766.4,2766.1,1.85649218]
[1643797074639,0.11921414,2766.4,2766.3,5.43034]
[1643797074845,0.11921414,2766.4,2766.3,0.18034]
[1643797075243,0.11921414,2766.4,2766.3,1.09508796]
[1643797075444,0.11921414,2766.4,2766.3,8.09508796]
[1643797075642,1.414e-05,2766.4,2766.3,12.09508796]
[1643797076044,1.414e-05,2766.4,2766.3,12.27578796]
[1643797076245,1.414e-05,2766.4,2766.3,13.17937796]
[1643797076644,1.414e-05,2766.4,2766.3,6.47937796]
[1643797078805,1.414e-05,2766.4,2766.3,6.47960459]
[1643797079004,1.414e-05,2766.4,2766.3,6.47962937]
[1643797079206,1.414e-05,2766.4,2766.3,6.47964992]
[1643797080209,1.414e-05,2766.4,2766.3,5.17964992]
[1643797080410,1.414e-05,2766.4,2766.3,3.36104]
[1643797081015,1.414e-05,2766.4,2766.3,3.18034]
[1643797081650,1.414e-05,2766.4,2766.3,3.0]
[1643797081847,1.53041568,2766.4,2766.3,3.0]
[1643797082452,1.53073225,2766.4,2766.3,3.0]
[1643797085986,3.67668622,2766.4,2766.3,3.0]
[1643797087187,3.85738622,2766.4,2766.3,3.0]
[1643797088393,4.15738622,2766.4,2766.3,3.0]
[1643797088636,3.85738622,2766.4,2766.3,3.0]
[1643797089339,2.01143225,2766.4,2766.3,3.0]
[1643797090538,2.01143225,2766.4,2766.3,1.36700829]
[1643797090740,0.90381,2766.3,2765.7,1.64809487]
[1643797090940,1.53071811,2766.2,2765.7,1.64809487]
[1643797091941,2.28833414,2766.4,2765.7,1.64809487]
[1643797092255,0.90379,2766.2,2765.7,1.64809487]
[1643797093896,1.20379,2766.2,2765.7,2.56311479]
[1643797094291,1.20379,2766.2,2765.7,1.64809487]
[1643797094492,1.20379,2766.2,2765.7,2.56311479]
[1643797094695,0.90379,2766.2,2765.7,1.64809487]
[1643797095292,0.90379,2766.2,2765.7,2.56311479]
[1643797096342,0.90379,2766.2,2765.8,0.1807]
[1643797096548,0.90379,2766.2,2765.8,1.08445]
[1643797098951,0.90379,2766.2,2765.8,0.1807]
[1643797099354,4.24245978,2766.1,2765.8,0.1807]
[1643797099551,1.8076548,2766.1,2765.7,0.74430487]
[1643797100491,1.8076548,2766.1,2765.6,0.1807]
[1643797101093,0.90384,2766.1,2765.6,1.09571992]
[1643797101293,2.27817264,2766.4,2765.7,1.09535992]
[1643797101294,0.90372,2766.3,2765.7,1.09535992]
[1643797101493,2.27817264,2766.4,2765.7,1.09535992]
[1643797101494,0.18071414,2766.4,2765.7,1.1137551]
[1643797101700,0.18071414,2766.4,2765.8,3.10325289]
[1643797101701,1.414e-05,2766.4,2765.8,3.10325289]
[1643797101894,1.414e-05,2766.4,2766.0,0.91501992]
[1643797102293,1.414e-05,2766.4,2766.1,1.09571992]
[1643797102502,1.414e-05,2766.4,2766.2,2.19086871]
[1643797102699,1.414e-05,2766.4,2766.3,6.88034]
[1643797103099,1.414e-05,2766.4,2766.3,7.88034]
[1643797103299,1.414e-05,2766.4,2766.3,8.79535992]
[1643797104147,1.414e-05,2766.4,2766.3,9.69882992]
[1643797104749,1.414e-05,2766.4,2766.3,8.78381]
[1643797105353,1.414e-05,2766.4,2766.3,2.26451]
[1643797105551,1.414e-05,2766.4,2766.3,1.08417]
[1643797105753,1.414e-05,2766.4,2766.2,2.80535]
[1643797106156,1.414e-05,2766.4,2766.2,0.99842]
[1643797106352,1.53074946,2766.4,2766.2,0.99842]
[1643797106552,2.13074946,2766.4,2766.2,0.99842]
[1643797106751,1.53073532,2766.3,2766.2,0.99842]
[1643797108297,3.53340503,2766.3,2766.2,0.02741782]
[1643797108496,3.8685463,2766.3,2766.2,0.02741782]
[1643797108695,4.3915463,2766.3,2766.2,0.02741782]
[1643797109495,5.2955663,2766.3,2766.2,0.02741782]
[1643797110197,1.6399504,2765.9,2765.4,1.06811782]
[1643797110398,2.33781098,2766.3,2765.3,0.18034]
[1643797110595,1.53107271,2766.2,2765.4,2.72259992]
[1643797110798,1.83107271,2766.2,2765.4,2.72259992]
[1643797110994,1.53107271,2766.1,2765.4,2.72259992]
[1643797111244,1.72944364,2766.0,2765.4,2.72259992]
[1643797111443,1.72944364,2766.0,2765.4,0.1807]
[1643797111650,2.02944364,2766.0,2765.4,0.1807]
[1643797111847,1.20383,2766.0,2765.4,0.1807]
[1643797112047,0.90383,2766.0,2765.4,0.1807]
[1643797112353,0.9039137,2765.9,2765.4,0.1807]
[1643797112547,1.8076464,2766.2,2765.4,1.0846]
[1643797112747,0.30001414,2766.4,2765.5,0.18034]
[1643797112748,1.414e-05,2766.4,2765.5,0.18034]
[1643797112950,1.414e-05,2766.4,2765.9,0.93294441]
[1643797113147,1.414e-05,2766.4,2765.6,0.1807]
[1643797113148,1.414e-05,2766.4,2765.6,1.98809]
[1643797113449,0.9037285,2766.2,2765.6,1.98809]
[1643797113651,0.9038,2766.1,2765.6,1.98809]
[1643797113848,0.3,2766.0,2765.6,1.98809]
[1643797114047,0.3,2766.0,2765.6,2.8278297]
[1643797114248,0.3,2766.0,2765.6,1.98809]
[1643797114749,2.10773,2766.0,2765.6,1.98809]
[1643797115802,3.0115512,2766.0,2765.6,1.98809]
[1643797116005,1.8076982,2765.9,2765.6,1.98809]
[1643797116204,3.0115582,2765.9,2765.6,1.98809]
[1643797116607,3.0115582,2765.9,2765.6,1.80739]
[1643797116806,3.0115582,2765.9,2765.4,0.1807]
[1643797117615,3.0115582,2765.9,2765.5,0.90388]
[1643797121756,0.3,2765.7,2765.5,0.90388]
[1643797122156,0.3,2765.7,2765.3,1.98841]
[1643797122391,0.3,2765.7,2765.3,1.80771]
[1643797122392,2.1078615,2765.7,2765.3,1.80771]
[1643797122602,2.1078615,2765.7,2765.2,0.1807]
[1643797122812,0.904107,2765.5,2765.0,0.1807]
[1643797123000,0.90412,2765.4,2764.9,0.36104]
[1643797123402,1.20412,2765.4,2764.9,0.18034]
[1643797123802,0.90412,2765.4,2764.9,0.18034]
[1643797124003,0.76499792,2765.3,2764.9,0.18034]
[1643797124205,0.90411,2765.3,2764.9,0.18034]
[1643797127043,0.31626379,2765.2,2764.9,0.18034]
[1643797127342,0.31626379,2765.2,2764.7,1.93494245]
[1643797127343,3.02872859,2765.2,2764.7,0.1807]
[1643797127954,0.3,2765.1,2764.7,0.1807]
[1643797128146,1.20424,2765.1,2764.4,7.6507]
[1643797128346,1.8084715,2765.0,2764.6,0.74307135]
[1643797128545,0.90424,2765.1,2764.6,0.74307135]
[1643797128748,1.204145,2765.0,2764.6,0.74307135]
[1643797130403,0.1807,2765.2,2764.7,2.08094354]
[1643797130611,1.2436,2765.5,2764.7,2.08094354]
[1643797130903,0.62413411,2766.0,2764.8,0.1807]
[1643797131102,0.1807,2765.8,2764.9,0.18034]
[1643797131502,2.35612821,2765.7,2764.9,2.21289866]
[1643797131704,1.20396,2765.6,2765.1,0.90396]
[1643797132103,1.20396,2765.6,2764.9,2.53839043]
[1643797132303,1.20396,2765.6,2764.9,0.49575713]
[1643797132304,1.68466,2765.6,2764.9,0.49575713]
[1643797132707,0.90403,2765.5,2764.9,0.18034]
[1643797133748,0.91283295,2765.2,2764.9,0.18034]
[1643797133946,1.81696755,2765.2,2764.9,0.18034]
[1643797134146,2.11696755,2765.2,2764.9,0.18034]
[1643797134346,2.11696755,2765.2,2764.8,0.1807]
[1643797134347,2.41696755,2765.2,2764.8,0.1807]
[1643797134947,1.5041346,2765.2,2764.8,0.1807]